bitfinex-derivatives/quotes_ETHF0:USTF0_20250524
["timestamp","ask_amount","ask_price","bid_price","bid_amount"]
[1748056204370,35.46463,2549.5,2549.4,3.2078]
[1748056207588,17.80963,2549.5,2549.4,3.2078]
[1748056207779,35.46363,2549.5,2549.4,3.2078]
[1748056208289,18.2902,2549.6,2549.4,3.2078]
[1748056208488,19.0744,2549.6,2549.5,1.2707]
[1748056209387,19.0744,2549.6,2549.5,2.05493]
[1748056209587,15.75489183,2549.7,2549.6,0.7842]
[1748056209788,34.19206183,2549.7,2549.6,2.0549]
[1748056209986,34.19206183,2549.7,2549.6,1.2707]
[1748056211491,16.53906183,2549.7,2549.6,1.2707]
[1748056211786,16.53906183,2549.7,2549.6,2.0549]
[1748056211787,0.00589183,2549.7,2549.6,2.0549]
[1748056211991,0.00589183,2549.7,2549.6,1.2707]
[1748056212191,0.00589183,2549.7,2549.6,2.0549]
[1748056212694,0.00589183,2549.7,2549.6,7.0549]
[1748056212885,0.00589183,2549.7,2549.6,2.0549]
[1748056218791,0.79006183,2549.7,2549.6,1.2707]
[1748056218994,1.44636183,2549.7,2549.6,2.0549]
[1748056219191,0.66219183,2549.7,2549.6,2.0549]
[1748056219593,1.44636183,2549.7,2549.6,1.2707]
[1748056220098,0.66219183,2549.7,2549.4,3.8923]
[1748056220299,0.78423,2549.5,2549.4,3.8923]
[1748056220498,0.78423,2549.5,2549.4,4.67656]
[1748056220998,2.18622,2549.6,2549.4,4.67656]
[1748056221700,0.78423,2549.5,2549.4,3.8923]
[1748056221896,0.78423,2549.5,2549.4,3.2078]
[1748056222397,2.15773,2549.5,2549.4,3.2078]
[1748056226404,19.80673,2549.5,2549.4,3.2078]
[1748056227307,0.66219183,2549.7,2549.6,0.7842]
[1748056227501,0.00589183,2549.7,2549.6,0.7842]
[1748056227697,0.00589183,2549.7,2549.6,5.7842]
[1748056227907,0.00589183,2549.7,2549.6,6.4294]
[1748056228797,0.00589183,2549.7,2549.6,8.85115543]
[1748056229408,15.745,2550.2,2550.1,0.78405]
[1748056229605,33.395,2550.2,2550.1,3.99185]
[1748056230506,34.17902,2550.2,2550.1,3.2078]
[1748056230800,34.17902,2550.2,2550.1,3.99185]
[1748056231605,34.17902,2550.2,2550.1,3.2078]
[1748056232409,33.395,2550.2,2550.1,3.99185]
[1748056232802,34.17902,2550.2,2550.1,3.2078]
[1748056233210,34.17702,2550.2,2550.1,3.2078]
[1748056234308,33.393,2550.2,2550.1,3.99185]
[1748056234510,33.392,2550.2,2550.1,3.99185]
[1748056234700,33.392,2550.2,2550.1,4.67845]
[1748056236211,34.17602,2550.2,2550.1,3.8944]
[1748056236401,34.17602,2550.2,2550.1,4.67845]
[1748056236805,34.17602,2550.2,2550.1,3.8944]
[1748056237003,34.17602,2550.2,2550.1,4.67845]
[1748056238710,34.17602,2550.2,2550.1,3.8944]
[1748056238908,34.17602,2550.2,2550.1,3.2078]
[1748056239113,35.48192,2550.2,2550.1,3.2078]
[1748056240008,0.78411,2549.9,2549.8,4.4842]
[1748056240412,0.78411,2549.9,2549.8,3.2078]
[1748056241006,2.78131,2549.9,2549.8,3.2078]
[1748056247211,7.78131,2549.9,2549.8,3.2078]
[1748056247514,7.78131,2549.9,2549.8,3.19601634]
[1748056249816,0.78423,2549.5,2549.4,1.3498]
[1748056250012,34.10423,2549.5,2549.4,1.3498]
[1748056250211,34.10423,2549.5,2549.4,4.5576]
[1748056251318,34.77113,2549.5,2549.4,4.5576]
[1748056251917,17.12313,2549.5,2549.4,4.5576]
[1748056252111,34.77213,2549.5,2549.4,4.5576]
[1748056252312,17.12313,2549.5,2549.4,4.5576]
[1748056252507,34.77213,2549.5,2549.4,4.5576]
[1748056252711,34.77213,2549.5,2549.4,5.2627]
[1748056254712,4.929,2549.8,2549.4,5.2627]
[1748056254919,16.4562,2549.6,2549.5,1.2808]
[1748056255115,16.4562,2549.6,2549.5,4.4886]
[1748056255512,0.7842,2549.6,2549.5,4.4886]
[1748056257422,6.36334,2549.8,2549.5,4.4886]
[1748056257612,0.78417,2549.7,2549.6,2.14779]
[1748056257814,0.78417,2549.7,2549.6,0.78419]
[1748056258018,0.78417,2549.7,2549.5,3.99201]
[1748056258219,0.78417,2549.7,2549.6,0.7842]
[1748056258415,22.579,2549.8,2549.5,3.99201]
[1748056258725,0.7842,2549.6,2549.5,3.2078]
[1748056259523,0.7842,2549.6,2549.5,4.55953256]
[1748056260225,0.7842,2549.6,2549.5,5.34376256]
[1748056260624,0.7842,2549.6,2549.5,4.55953256]
[1748056261825,1.46,2549.6,2549.5,4.55953256]
[1748056262519,1.46,2549.6,2549.5,3.2078]
[1748056268434,2.7788,2549.6,2549.5,3.2078]
[1748056268731,0.78426,2549.4,2549.3,0.6359]
[1748056269033,0.78429,2549.3,2549.2,0.00589183]
[1748056269235,2.17449,2549.3,2549.2,0.00589183]
[1748056271036,7.17449,2549.3,2549.2,0.00589183]
[1748056271237,2.17449,2549.3,2549.2,0.00589183]
[1748056274438,34.02229,2549.3,2549.2,0.00589183]
[1748056274840,0.78429,2549.4,2549.3,0.78426]
[1748056275138,0.78426,2549.4,2549.3,1.3892]
[1748056276342,0.78426,2549.4,2549.3,1.38340651]
[1748056276640,33.238,2549.6,2549.3,1.38340651]
[1748056276945,18.43623,2549.5,2549.4,3.9121]
[1748056277144,0.78423,2549.5,2549.4,4.69635]
[1748056277441,33.239,2549.6,2549.5,0.78423]
[1748056277643,0.78423,2549.5,2549.4,3.9121]
[1748056278441,0.78423,2549.5,2549.4,4.69636]
[1748056278642,0.78423,2549.5,2549.4,3.9121]
[1748056279344,15.587,2549.6,2549.5,0.78423]
[1748056279642,15.587,2549.6,2549.5,2.07003]
[1748056280142,18.43515,2549.8,2549.6,0.78418]
[1748056280344,0.78415,2549.8,2549.7,4.4936]
[1748056281241,0.78412,2549.9,2549.7,5.27776]
[1748056281440,0.78412,2549.9,2549.8,1.2844]
[1748056282243,16.36912,2549.9,2549.8,1.2844]
[1748056284146,34.01912,2549.9,2549.8,1.2844]
[1748056284746,16.36912,2549.9,2549.8,1.2844]
[1748056284941,34.01912,2549.9,2549.8,1.2844]
[1748056285945,16.36912,2549.9,2549.8,1.2844]
[1748056286147,0.78408,2550.1,2549.9,0.78409]
[1748056286335,0.78408,2550.1,2550.0,5.1408]
[1748056292363,15.584,2550.2,2550.1,0.78405]
[1748056292664,0.78405,2550.1,2550.0,5.1408]
[1748056292855,1.43895,2550.1,2550.0,3.8612]
[1748056293359,0.78405,2550.1,2550.0,3.8612]
[1748056295366,18.43205,2550.1,2550.0,3.8612]
[1748056298366,15.584,2550.2,2550.0,3.8612]
[1748056298566,15.584,2550.2,2550.1,0.78405]
[1748056298866,0.78402,2550.2,2550.1,0.6938]
[1748056299167,18.43686183,2550.4,2550.1,1.47785]
[1748056299361,0.78986183,2550.4,2550.3,3.2078]
[1748056299561,0.00589183,2550.4,2550.3,3.99179]
[1748056299755,0.00589183,2550.4,2550.3,3.2078]
[1748056299960,0.78985183,2550.4,2550.3,3.2078]
[1748056300363,16.36485183,2550.4,2550.3,3.2078]
[1748056300563,34.01185183,2550.4,2550.3,3.2078]
[1748056300971,33.22789183,2550.4,2550.3,3.2078]
[1748056301164,34.01185183,2550.4,2550.3,3.2078]
[1748056301967,0.78985183,2550.4,2550.3,3.2078]
[1748056302163,18.43685183,2550.4,2550.3,3.2078]
[1748056303072,0.78985183,2550.4,2550.3,3.2078]
[1748056303270,17.65189183,2550.4,2550.3,3.99179]
[1748056303466,17.65189183,2550.4,2550.3,3.2078]
[1748056304073,18.43585183,2550.4,2550.3,3.2078]
[1748056304474,19.11365183,2550.4,2550.3,3.2078]
[1748056305068,0.68369183,2550.4,2550.3,3.99179]
[1748056305270,0.00589183,2550.4,2550.3,8.99179]
[1748056307376,0.00589183,2550.4,2550.3,10.34518647]
[1748056308070,0.78377,2551.0,2550.4,1.95988]
[1748056308270,0.78374,2551.1,2550.9,3.2078]
[1748056308471,0.78377,2551.1,2551.0,1.3171]
[1748056308672,0.78374,2551.1,2551.0,1.3171]
[1748056309179,0.78373,2551.2,2551.0,2.10086]
[1748056309374,0.78374,2551.1,2551.0,1.3171]
[1748056309776,0.00587982,2551.3,2550.9,3.2078]
[1748056309777,0.78377,2551.0,2550.9,3.2078]
[1748056311786,2.14037,2551.0,2550.9,3.2078]
[1748056312678,7.14037,2551.0,2550.9,3.2078]
[1748056313279,2.14037,2551.0,2550.9,3.2078]
[1748056313680,35.35537,2551.0,2550.9,3.2078]
[1748056314185,33.99877,2551.0,2550.9,3.2078]
[1748056315081,33.99877,2551.0,2550.8,0.00587982]
[1748056315278,0.78405,2550.1,2550.0,0.1495861]
[1748056315478,37.20685,2550.1,2550.0,6.1e-06]
[1748056315675,42.20685,2550.1,2550.0,6.1e-06]
[1748056316391,41.4228,2550.1,2549.8,1.3139231]
[1748056316587,0.78411,2549.9,2549.8,1.3139231]
[1748056316990,18.42711,2549.9,2549.8,1.3139231]
[1748056317988,34.00311,2549.9,2549.8,0.00587982]
[1748056318197,34.00311,2549.9,2549.8,0.66997982]
[1748056319285,34.00311,2549.9,2549.8,0.00587982]
[1748056321588,34.00511,2549.9,2549.8,0.00587982]
[1748056325183,16.35911,2549.9,2549.8,0.79001982]
[1748056325378,34.00611,2549.9,2549.8,1.28517982]
[1748056325584,34.00611,2549.9,2549.8,2.06931982]
[1748056325890,34.00611,2549.9,2549.8,1.28517982]
[1748056326593,0.78411,2549.9,2549.8,1.28517982]
[1748056326786,34.50011,2549.9,2549.8,1.28517982]
[1748056326986,16.85311,2549.9,2549.8,1.28517982]
[1748056327186,34.50011,2549.9,2549.8,1.28517982]
[1748056330495,16.069,2549.9,2549.8,2.06931982]
[1748056330691,33.717,2549.9,2549.8,2.06931982]
[1748056332895,34.50111,2549.9,2549.8,1.28517982]
[1748056334999,34.50111,2549.9,2549.8,2.06931982]
[1748056336903,33.717,2549.9,2549.8,2.06931982]
[1748056337199,34.50111,2549.9,2549.8,2.06931982]
[1748056337503,16.069,2550.0,2549.8,1.28517982]
[1748056337806,16.069,2550.0,2549.9,2.16281]
[1748056338002,33.717,2550.0,2549.9,2.16281]
[1748056339505,34.50108,2550.0,2549.9,2.16281]
[1748056339703,34.50108,2550.0,2549.9,1.3787]
[1748056341118,34.50108,2550.0,2549.9,2.16281]
[1748056341819,33.717,2550.0,2549.9,2.16281]
[1748056342016,16.069,2550.0,2549.9,2.16281]
[1748056342320,33.717,2550.0,2549.9,2.16281]
[1748056342617,16.85308,2550.0,2549.9,2.16281]
[1748056342917,34.50108,2550.0,2549.9,2.16281]
[1748056344722,16.069,2550.0,2549.9,2.16281]
[1748056345015,33.717,2550.0,2549.9,2.16281]
[1748056345919,33.717,2550.0,2549.9,3.51141128]
[1748056346107,34.50108,2550.0,2549.9,2.72730128]
[1748056347917,18.43208,2550.0,2549.9,2.72730128]
[1748056348222,18.43208,2550.0,2549.9,1.3787]
[1748056351019,18.43208,2550.0,2549.9,2.16281]
[1748056351226,16.069,2550.1,2550.0,0.78408]
[1748056351528,0.78411,2549.9,2549.8,3.21367982]
[1748056353224,0.78411,2549.9,2549.8,3.99781982]
[1748056353622,0.78411,2549.9,2549.8,4.56285631]
[1748056353818,1.45791,2549.9,2549.8,4.56285631]
[1748056354618,1.45791,2549.9,2549.8,5.95875631]
[1748056356026,1.45791,2549.9,2549.8,4.56285631]
[1748056356325,1.45791,2549.9,2549.8,1.35505631]
[1748056356725,2.82111,2549.9,2549.8,1.35505631]
[1748056356926,2.82111,2549.9,2549.8,0.00587982]
[1748056359727,20.46911,2549.9,2549.8,0.00587982]
[1748056362028,2.82111,2549.9,2549.8,0.00587982]
[1748056362229,20.46911,2549.9,2549.8,0.00587982]
[1748056364128,1.45791,2549.9,2549.8,0.00587982]
[1748056364323,19.10691,2549.9,2549.8,0.00587982]
[1748056364529,20.41831,2549.9,2549.8,0.00587982]
[1748056370031,2.76931,2549.9,2549.8,0.00587982]
[1748056370537,16.58611,2549.9,2549.8,0.00587982]
[1748056370735,34.23611,2549.9,2549.8,0.00587982]
[1748056371132,16.58611,2549.9,2549.8,0.00587982]
[1748056371331,34.23611,2549.9,2549.8,0.00587982]
[1748056371528,34.88866669,2549.9,2549.8,0.00587982]
[1748056372541,34.88866669,2549.9,2549.8,1.40197982]
[1748056373330,1.43666669,2549.9,2549.8,1.40197982]
[1748056373536,34.88866669,2549.9,2549.8,1.40197982]
[1748056373744,17.23866669,2549.9,2549.8,0.00587982]
[1748056373938,38.09646669,2549.9,2549.8,9.82e-06]
[1748056375240,0.65255669,2549.9,2549.8,0.78414982]
[1748056375440,34.88766669,2549.9,2549.8,9.82e-06]
[1748056376233,34.23511,2549.9,2549.8,9.82e-06]
[1748056376941,0.78411,2549.9,2549.8,9.82e-06]
[1748056377140,34.23511,2549.9,2549.8,9.82e-06]
[1748056378238,0.78411,2549.9,2549.8,9.82e-06]
[1748056378439,34.23411,2549.9,2549.8,9.82e-06]
[1748056385155,35.55661,2549.9,2549.8,9.82e-06]
[1748056385752,38.76441,2549.9,2549.8,9.82e-06]
[1748056385955,43.76441,2549.9,2549.8,9.82e-06]
[1748056387358,38.76441,2549.9,2549.8,9.82e-06]
[1748056390471,38.69241,2549.9,2549.8,9.82e-06]
[1748056390672,43.69241,2549.9,2549.8,9.82e-06]
[1748056391371,38.69241,2549.9,2549.8,9.82e-06]
[1748056392068,43.69241,2549.9,2549.8,9.82e-06]
[1748056393672,5.31441,2549.9,2549.8,9.82e-06]
[1748056393873,37.37191,2549.9,2549.8,9.82e-06]
[1748056394074,34.16411,2549.9,2549.8,9.82e-06]
[1748056394574,34.16411,2549.9,2549.8,1.41110982]
[1748056395367,34.81666669,2549.9,2549.8,1.41110982]
[1748056396673,1.43666669,2549.9,2549.8,1.41110982]
[1748056396870,34.81666669,2549.9,2549.8,1.41110982]
[1748056398771,17.16566669,2549.9,2549.8,2.19524982]
[1748056399078,34.03255669,2549.9,2549.8,1.41110982]
[1748056399381,34.81666669,2549.9,2549.8,1.41110982]
[1748056399582,17.16566669,2549.9,2549.8,1.41110982]
[1748056399879,34.16411,2549.9,2549.8,1.41110982]
[1748056400271,34.16411,2549.9,2549.8,2.19524982]
[1748056400976,34.16411,2549.9,2549.8,1.41110982]
[1748056404878,34.86861,2549.9,2549.8,1.41110982]
[1748056406381,17.21761,2549.9,2549.8,1.41110982]
[1748056406680,34.16311,2549.9,2549.8,1.41110982]
[1748056407076,34.16211,2549.9,2549.8,1.41110982]
[1748056407480,0.78411,2549.9,2549.8,1.41110982]
[1748056407680,34.16211,2549.9,2549.8,1.41110982]
[1748056408883,34.16211,2549.9,2549.8,2.04690982]
[1748056409181,0.78411,2549.9,2549.8,2.04690982]
[1748056409382,15.728,2549.9,2549.8,2.83104982]
[1748056409583,33.378,2549.9,2549.8,2.83104982]
[1748056410186,34.16211,2549.9,2549.8,2.83104982]
[1748056410887,34.16211,2549.9,2549.8,2.04690982]
[1748056411186,15.728,2549.9,2549.8,2.83104982]
[1748056411386,33.378,2549.9,2549.8,2.83104982]
[1748056413683,15.728,2549.9,2549.8,2.83104982]
[1748056413889,15.728,2549.9,2549.8,7.3866574]
[1748056415383,0.78406,2550.1,2550.0,0.78408]
[1748056415587,18.43306,2550.1,2550.0,0.78408]
[1748056415990,18.43306,2550.1,2550.0,1.45488]
[1748056416387,18.43306,2550.1,2550.0,0.6708]
[1748056417193,18.43306,2550.1,2550.0,2.046]
[1748056417381,18.43306,2550.1,2550.0,2.83008]
[1748056418286,0.78406,2550.1,2550.0,2.83008]
[1748056418590,18.43206,2550.1,2550.0,2.83008]
[1748056419194,18.43206,2550.1,2550.0,2.046]
[1748056419488,18.43206,2550.1,2550.0,2.83008]
[1748056419693,18.43206,2550.1,2550.0,2.046]
[1748056421595,18.43206,2550.1,2550.0,2.83008]
[1748056421787,18.43206,2550.1,2550.0,2.046]
[1748056422394,18.43206,2550.1,2550.0,2.83008]
[1748056422594,18.43206,2550.1,2550.0,2.046]
[1748056426795,18.43106,2550.1,2550.0,2.046]
[1748056429692,0.78406,2550.1,2550.0,2.046]
[1748056429899,18.43106,2550.1,2550.0,2.046]
[1748056430797,18.43106,2550.1,2550.0,2.0393]
[1748056431788,18.43106,2550.1,2550.0,1.3752]
[1748056433001,18.43106,2550.1,2550.0,2.15928]
[1748056434197,1.3539,2550.4,2550.0,1.3752]
[1748056434398,15.612,2550.3,2550.2,0.78402]
[1748056434601,33.259,2550.3,2550.2,2.10462]
[1748056434806,34.04299,2550.3,2550.2,1.3206]
[1748056435001,36.04389,2550.3,2550.2,1.3206]
[1748056435502,18.39689,2550.3,2550.2,1.3206]
[1748056435700,36.04389,2550.3,2550.2,1.3206]
[1748056439395,0.78402,2550.2,2550.1,3.2078]
[1748056439607,0.78408,2550.0,2549.9,1.9801]
[1748056440004,0.78395,2550.5,2550.3,0.78396]
[1748056440204,0.78394,2550.5,2550.4,0.78395]
[1748056440397,0.6699,2550.7,2550.6,0.7839]
[1748056440802,18.3169,2550.7,2550.6,0.7839]
[1748056441507,19.60365,2550.8,2550.7,0.78387]
[1748056441706,15.612,2550.8,2550.7,3.99167]
[1748056441908,34.04284,2550.8,2550.7,3.99167]
[1748056442110,19.74378669,2550.9,2550.8,0.78384]
[1748056442308,2.09678669,2550.9,2550.8,2.75944]
[1748056442510,19.74378669,2550.9,2550.8,3.39794]
[1748056442804,19.74378669,2550.9,2550.8,2.6141]
[1748056443307,18.95995669,2550.9,2550.8,3.39794]
[1748056443613,19.74376669,2550.9,2550.8,2.6141]
[1748056444210,18.29755669,2550.9,2550.8,3.39794]
[1748056445007,18.29755669,2550.9,2550.8,2.6141]
[1748056445008,19.08136669,2550.9,2550.8,2.6141]
[1748056445313,1.43636669,2550.9,2550.8,2.6141]
[1748056445611,0.65255669,2550.9,2550.8,3.39794]
[1748056446510,18.4288,2551.0,2550.8,3.39794]
[1748056446708,15.612,2551.1,2550.9,1.32]
[1748056446907,34.03977,2551.1,2550.9,2.10379]
[1748056447313,34.03977,2551.1,2551.0,1.32]
[1748056451116,15.612,2551.1,2551.0,2.10378]
[1748056451310,33.255,2551.1,2551.0,5.31158]
[1748056451608,34.03874,2551.1,2551.0,4.5278]
[1748056451814,34.03874,2551.1,2551.0,1.32]
[1748056452609,15.612,2551.1,2551.0,2.10378]
[1748056452811,33.254,2551.1,2551.0,2.10378]
[1748056453713,34.03774,2551.1,2551.0,1.32]
[1748056455719,16.39574,2551.1,2551.0,4.5278]
[1748056455920,34.03674,2551.1,2551.0,4.5278]
[1748056457222,34.03674,2551.1,2551.0,3.2078]
[1748056457412,35.31764,2551.1,2551.0,3.2078]
[1748056457719,0.78387,2550.7,2550.6,1.3474]
[1748056458626,18.8108,2550.7,2550.1,3.2078]
[1748056458819,0.78402,2550.2,2550.1,3.2078]
[1748056459521,0.78405,2550.1,2550.0,0.6704]
[1748056459911,0.78405,2550.1,2550.0,2.0495]
[1748056461022,0.78405,2550.1,2550.0,2.83358]
[1748056461223,0.78405,2550.1,2550.0,2.0495]
[1748056461619,18.42605,2550.1,2550.0,2.0495]
[1748056464624,2.81513,2550.2,2550.0,2.0495]
[1748056464814,2.81513,2550.2,2550.1,1.3932]
[1748056465117,20.45813,2550.2,2550.1,1.3932]
[1748056466218,2.81513,2550.2,2550.1,1.3932]
[1748056466415,36.06313,2550.2,2550.1,1.3932]
[1748056468128,2.81513,2550.2,2550.1,1.3932]
[1748056468425,36.06413,2550.2,2550.1,1.3932]
[1748056469230,2.81513,2550.2,2550.1,1.3932]
[1748056469429,36.06413,2550.2,2550.1,1.3932]
[1748056471423,35.2801,2550.2,2549.8,3.20780982]
[1748056471623,0.78411,2549.9,2549.8,4.54400982]
[1748056472728,2.13131,2549.9,2549.8,4.54400982]
[1748056474228,0.78411,2549.9,2549.8,4.54400982]
[1748056474434,0.78411,2549.9,2549.8,1.33620982]
[1748056474733,0.78411,2549.9,2549.8,2.12034982]
[1748056474931,0.78411,2549.9,2549.8,1.33620982]
[1748056475326,2.18471,2549.9,2549.8,1.33620982]
[1748056475533,2.18471,2549.9,2549.8,9.82e-06]
[1748056476746,7.18471,2549.9,2549.8,9.82e-06]
[1748056479639,7.49319652,2549.9,2549.8,9.82e-06]
[1748056481646,12.42219652,2549.9,2549.8,9.82e-06]
[1748056481848,3.9208,2549.8,2548.5,1.07117683]
[1748056482150,3.99231,2548.6,2548.5,1.07117683]
[1748056482345,0.78454,2548.5,2548.4,1.07117683]
[1748056482544,3.51154,2548.5,2548.4,1.07117683]
[1748056484543,0.78457,2548.4,2548.3,1.358]
[1748056484743,2.11887,2548.4,2548.3,1.358]
[1748056484945,0.78461,2548.3,2548.2,9.82e-06]
[1748056485147,38.57871,2548.3,2548.2,9.82e-06]
[1748056485345,5.32671,2548.3,2548.2,9.82e-06]
[1748056485549,35.37091,2548.3,2548.2,9.82e-06]
[1748056485748,38.57871,2548.3,2548.2,9.82e-06]
[1748056497962,37.24441,2548.3,2548.2,9.82e-06]
[1748056498462,3.99241,2548.3,2548.2,9.82e-06]
[1748056498760,17.66,2548.4,2548.3,0.78461]
[1748056499057,0.00587982,2548.7,2548.3,1.9425]
[1748056499252,0.78457,2548.5,2548.4,0.78457]
[1748056499452,0.78457,2548.4,2548.3,4.63669]
[1748056499653,0.78457,2548.4,2548.3,3.8521]
[1748056500058,0.78457,2548.4,2548.3,0.6443]
[1748056500252,15.611,2548.6,2548.5,0.78454]
[1748056500453,13.4922,2548.6,2548.5,0.78454]
[1748056500653,13.4922,2548.6,2548.5,5.78454]
[1748056500958,13.4922,2548.6,2548.3,3.8521]
[1748056501154,0.78457,2548.4,2548.3,3.8521]
[1748056501960,13.4922,2548.6,2548.3,4.63671]
[1748056502962,0.78457,2548.4,2548.3,4.63671]
[1748056503155,0.79036982,2548.7,2548.3,3.8521]
[1748056503356,34.05452,2548.6,2548.3,3.8521]
[1748056503556,17.659,2548.6,2548.5,0.78454]
[1748056503959,0.00587982,2548.7,2548.6,0.78451]
[1748056504153,0.00587982,2548.7,2548.6,4.63891]
[1748056504658,0.00587982,2548.7,2548.6,9.63891]
[1748056504957,0.79035982,2548.7,2548.6,3.8544]
[1748056505162,0.79035982,2548.7,2548.6,0.6466]
[1748056505860,3.99815982,2548.7,2548.6,0.6466]
[1748056506061,5.32635982,2548.7,2548.6,0.6466]
[1748056506963,0.78457,2548.4,2548.3,1.71547683]
[1748056507162,16.39357,2548.4,2548.3,1.71547683]
[1748056507365,16.39357,2548.4,2548.3,0.6443]
[1748056509465,34.05257,2548.4,2548.3,0.6443]
[1748056511464,34.05257,2548.4,2548.3,1.9961]
[1748056513866,34.05257,2548.4,2548.3,0.6443]
[1748056514078,35.36417,2548.4,2548.3,0.6443]
[1748056514868,0.78461,2548.3,2548.2,9.82e-06]
[1748056515070,5.30401,2548.3,2548.2,9.82e-06]
[1748056519965,10.30401,2548.3,2548.2,9.82e-06]
[1748056521269,15.23301,2548.3,2548.2,9.82e-06]
[1748056523972,24.3784,2548.3,2547.1,3.2078]
[1748056524166,3.2078,2547.9,2547.1,3.8811]
[1748056524366,1.9798,2548.2,2547.4,3.2078]
[1748056524567,33.27,2548.1,2548.0,0.7847]
[1748056524972,33.271,2548.1,2548.0,0.7847]
[1748056525176,33.271,2548.1,2548.0,0.78468]
[1748056525370,34.05567,2548.1,2548.0,0.78468]
[1748056525876,34.05567,2548.1,2548.0,2.10788]
[1748056526078,34.05567,2548.1,2548.0,1.3232]
[1748056527777,16.39367,2548.1,2548.0,1.3232]
[1748056527976,34.05567,2548.1,2548.0,1.3232]
[1748056531376,16.39367,2548.1,2548.0,1.3232]
[1748056531577,34.05567,2548.1,2548.0,1.3232]
[1748056532780,0.7847,2548.0,2547.9,0.699]
[1748056533281,2.1704,2548.0,2547.9,0.699]
[1748056534088,0.78473,2547.9,2547.8,0.00587982]
[1748056534274,5.34293,2547.9,2547.8,0.00587982]
[1748056535186,5.34293,2547.9,2547.8,9.82e-06]
[1748056535782,38.61193,2547.9,2547.8,9.82e-06]
[1748056536087,34.05373,2547.9,2547.8,9.82e-06]
[1748056538286,34.05373,2547.9,2547.8,0.64380982]
[1748056541386,34.05773,2547.9,2547.8,0.64380982]
[1748056542390,34.05773,2547.9,2547.8,1.29190982]
[1748056543489,16.39473,2547.9,2547.8,1.29190982]
[1748056543890,34.05773,2547.9,2547.8,2.61860982]
[1748056548394,0.78473,2547.9,2547.8,2.61860982]
[1748056548586,34.05873,2547.9,2547.8,2.61860982]
[1748056549599,0.78473,2547.9,2547.8,2.61860982]
[1748056549787,0.78473,2548.0,2547.8,2.61860982]
[1748056550096,0.78473,2548.0,2547.9,1.3965]
[1748056550393,34.05773,2548.0,2547.9,1.3965]
[1748056551099,34.05773,2548.0,2547.8,9.82e-06]
[1748056551100,0.78473,2547.9,2547.8,9.82e-06]
[1748056551391,3.99253,2547.9,2547.8,9.82e-06]
[1748056551583,5.96183,2547.9,2547.8,9.82e-06]
[1748056554093,3.2078,2548.3,2547.8,9.82e-06]
[1748056554290,0.78473,2547.9,2547.8,0.78475982]
[1748056554491,0.78473,2547.9,2547.8,9.82e-06]
[1748056555300,0.78473,2547.9,2547.8,1.36290982]
[1748056557408,2.06203,2547.9,2547.8,1.36290982]
[1748056563404,19.72403,2547.9,2547.8,1.36290982]
[1748056564001,15.611,2548.0,2547.8,6.36290982]
[1748056564202,15.611,2548.3,2548.2,0.78464]
[1748056564506,34.05761,2548.3,2548.2,3.99244]
[1748056565306,34.05761,2548.3,2548.2,5.34766742]
[1748056565506,0.65255669,2548.4,2548.3,0.78461]
[1748056565706,18.31455669,2548.4,2548.3,0.78461]
[1748056565908,19.09912669,2548.4,2548.3,0.78461]
[1748056566506,18.31455669,2548.4,2548.3,0.78461]
[1748056567196,0.65255669,2548.4,2548.3,0.78461]
[1748056567402,0.65255669,2548.4,2548.3,2.13983742]
[1748056568008,0.65255669,2548.4,2548.3,7.13983742]
[1748056568913,0.00587982,2548.7,2548.6,0.78451]
[1748056569209,0.00587982,2548.7,2548.6,3.99231]
[1748056570215,0.00587982,2548.7,2548.6,5.34753742]
[1748056571201,0.79035982,2548.7,2548.6,5.34753742]
[1748056571400,0.00587982,2548.7,2548.6,5.34753742]
[1748056571607,0.79035982,2548.7,2548.6,4.56302742]
[1748056572403,2.06585982,2548.7,2548.6,4.56302742]
[1748056572600,2.06585982,2548.7,2548.6,1.35522742]
[1748056574306,0.78457,2548.4,2548.3,3.2078]
[1748056576116,1.386,2548.6,2548.3,3.2078]
[1748056576417,16.39136982,2548.7,2548.6,0.78451]
[1748056576608,33.26487982,2548.7,2548.6,3.99231]
[1748056576809,34.04935982,2548.7,2548.6,3.99231]
[1748056578114,34.04935982,2548.7,2548.6,3.2078]
[1748056578316,0.78454,2548.5,2548.4,0.78456]
[1748056578718,1.3525,2548.6,2548.5,0.78454]
[1748056578719,2.13703,2548.6,2548.5,0.78454]
[1748056580919,1.3525,2548.6,2548.5,0.78454]
[1748056581220,33.26487982,2548.7,2548.6,0.78451]
[1748056581419,33.26487982,2548.7,2548.6,3.99231]
[1748056581619,34.04935982,2548.7,2548.6,3.99231]
[1748056581817,33.26487982,2548.7,2548.6,3.99231]
[1748056582423,34.04935982,2548.7,2548.6,3.99231]
[1748056582914,34.04935982,2548.7,2548.6,4.66261]
[1748056583110,34.04935982,2548.7,2548.6,5.98311]
[1748056583415,16.39135982,2548.7,2548.6,5.98311]
[1748056583717,34.04835982,2548.7,2548.6,5.98311]
[1748056585022,33.26387982,2548.7,2548.6,5.98311]
[1748056585318,17.66287982,2548.7,2548.6,5.98311]
[1748056587117,0.00587982,2548.7,2548.6,5.98311]
[1748056587313,17.66187982,2548.7,2548.6,10.98311]
[1748056587619,0.00587982,2548.7,2548.6,5.98311]
[1748056588017,0.00587982,2548.7,2548.6,7.33242864]
[1748056588220,0.00587982,2548.7,2548.6,12.33242864]
[1748056588521,0.00587982,2548.7,2548.6,7.33242864]
[1748056589024,15.599,2549.3,2548.6,7.33242864]
[1748056589025,0.78422,2549.6,2548.6,11.54791864]
[1748056589221,17.656,2549.5,2549.4,0.78425]
[1748056589524,18.44025,2549.5,2549.3,2.87147]
[1748056589711,19.78255,2549.5,2549.3,3.55017]
[1748056589916,18.9983,2549.5,2549.4,0.78427]
[1748056590223,1.3423,2549.5,2549.4,2.17437]
[1748056590424,1.47052,2549.6,2549.5,0.78424]